bitfinex-derivatives/quotes_SOLF0:USTF0_20241008
["timestamp","ask_amount","ask_price","bid_price","bid_amount"]
[1728420973517,14.1259,144.34,144.32,3.4661]
[1728420973828,10.66,144.33,144.28,4.92]
[1728420974018,14.1262,144.33,144.29,10.66]
[1728420974223,10.66,144.33,144.29,10.66]
[1728420975416,10.66,144.33,144.32,3.4664]
[1728420979331,10.66,144.33,144.31,3.4665]
[1728420979829,5.04502,144.35,144.29,3.4669]
[1728420979830,14.1265,144.32,144.29,3.4669]
[1728420980035,10.66,144.31,144.29,3.4669]
[1728420980927,10.66,144.3,144.28,3.4672]
[1728420981233,10.66,144.3,144.25,18.3916]
[1728420981427,10.66,144.3,144.28,3.4672]
[1728420989536,10.66,144.29,144.28,3.4672]
[1728420990738,10.66,144.29,144.27,3.4675]
[1728420991037,7.00896413,144.3,144.27,3.4675]
[1728420991038,10.66,144.28,144.27,3.4675]
[1728420992427,10.66,144.29,144.25,10.66]
[1728420992632,10.66,144.29,144.28,3.4672]
[1728420995537,10.66,144.29,144.25,10.66]
[1728420996240,10.66,144.29,144.27,3.4674]
[1728421001646,10.66,144.28,144.22,6.2409]
[1728421001845,14.1281,144.25,144.22,1.3209]
[1728421002242,14.1281,144.25,144.22,4.7895]
[1728421002447,3.4683,144.24,144.22,3.4686]
[1728421002849,3.4683,144.24,144.2,16.9878]
[1728421003049,14.1283,144.24,144.21,3.4689]
[1728421003348,3.4693,144.2,144.17,0.12502]
[1728421003536,10.66,144.19,144.17,0.12502]
[1728421003942,10.66,144.18,144.17,0.12502]
[1728421004547,19.0497,144.18,144.17,0.12502]
[1728421005451,4.92,144.18,144.17,0.12502]
[1728421005645,15.58,144.18,144.17,0.12502]
[1728421006745,10.66,144.18,144.17,0.12502]
[1728421006951,10.66,144.21,144.18,3.4695]
[1728421007251,15.58,144.21,144.18,3.4695]
[1728421007446,1.3293,144.26,144.17,0.12502]
[1728421007641,10.66,144.21,144.2,3.4692]
[1728421008349,10.66,144.21,144.19,3.4694]
[1728421008654,10.66,144.2,144.17,0.12502]
[1728421008954,10.66,144.2,144.18,3.4697]
[1728421013954,10.66,144.22,144.2,3.4693]
[1728421014147,15.58,144.22,144.2,3.4693]
[1728421014846,19.0489,144.22,144.19,3.4694]
[1728421015054,10.66,144.2,144.19,3.4694]
[1728421015954,4.92,144.22,144.17,10.78502]
[1728421016255,1.3293,144.26,144.21,10.66]
[1728421016455,11.9893,144.26,144.21,10.66]
[1728421016652,11.9893,144.26,144.24,3.4682]
[1728421016957,15.4572,144.26,144.24,3.4682]
[1728421018450,11.9893,144.26,144.24,3.4682]
[1728421018655,10.66,144.26,144.21,10.66]
[1728421019357,10.66,144.26,144.24,3.4682]
[1728421020459,8.3877,144.27,144.21,10.66]
[1728421020658,19.0477,144.27,144.25,3.4681]
[1728421020855,10.66,144.26,144.21,10.66]
[1728421021055,14.128,144.26,144.21,10.66]
[1728421021453,14.128,144.26,144.23,3.4683]
[1728421021658,14.128,144.26,144.21,10.66]
[1728421022255,14.128,144.26,144.22,3.4687]
[1728421022458,14.128,144.26,144.21,10.66]
[1728421023654,10.66,144.26,144.21,10.66]
[1728421024559,8.3877,144.27,144.21,10.66]
[1728421024756,10.66,144.26,144.21,10.66]
[1728421025461,10.66,144.26,144.24,3.4682]
[1728421029869,14.1278,144.26,144.24,3.4682]
[1728421030262,10.66,144.25,144.2,10.66]
[1728421030462,14.1283,144.24,144.22,3.4686]
[1728421031373,10.66,144.24,144.22,3.4686]
[1728421032479,14.1284,144.24,144.22,3.4686]
[1728421034576,14.1282,144.25,144.22,3.4686]
[1728421037584,10.66,144.25,144.22,3.4686]
[1728421037785,3.4683,144.24,144.22,3.4686]
[1728421038582,14.06239358,144.23,144.17,3.59492]
[1728421038787,10.66,144.21,144.17,0.12502]
[1728421039180,1.3702,144.23,144.17,10.78502]
[1728421039385,10.66,144.22,144.17,10.78502]
[1728421040086,1.3702,144.23,144.19,10.66]
[1728421040589,1.3702,144.23,144.2,3.4692]
[1728421040777,12.0302,144.23,144.17,0.12502]
[1728421040981,12.0302,144.23,144.17,10.78502]
[1728421041284,12.0302,144.23,144.19,3.4694]
[1728421041285,3.4689,144.22,144.19,3.4694]
[1728421044486,9.7588,144.23,144.2,3.4691]
[1728421044681,20.4188,144.23,144.2,3.4691]
[1728421045481,4.92,144.23,144.19,10.66]
[1728421045682,4.92,144.23,144.22,3.4688]
[1728421046887,14.1282,144.25,144.22,3.4688]
[1728421047281,10.66,144.25,144.22,3.4688]
[1728421047891,10.66,144.24,144.22,3.4688]
[1728421049388,14.1283,144.24,144.22,3.4688]
[1728421051495,10.66,144.24,144.22,3.4688]
[1728421052402,14.1284,144.24,144.22,3.4688]
[1728421057394,4.92,144.26,144.19,10.66]
[1728421057591,14.1282,144.25,144.23,3.4684]
[1728421058995,1.3367,144.27,144.18,6.2316]
[1728421059307,3.4679,144.26,144.24,3.4682]
[1728421065207,29.63000203,144.36,144.25,10.66]
[1728421065410,15.56,144.32,144.28,3.4673]
[1728421065714,3.49880512,144.31,144.26,10.66]
[1728421066008,10.66,144.3,144.27,3.4674]
[1728421066603,10.66,144.3,144.26,10.66]
[1728421066604,10.78502,144.29,144.26,3.4677]
[1728421067003,14.1275,144.28,144.26,3.4677]
[1728421067403,0.12502,144.29,144.26,3.4677]
[1728421067604,10.78502,144.29,144.26,3.4677]
[1728421067802,10.78502,144.29,144.27,3.4674]
[1728421068006,10.78502,144.29,144.25,4.9]
[1728421068711,10.78502,144.29,144.27,3.4674]
[1728421069006,0.12502,144.29,144.25,15.56]
[1728421069209,0.12502,144.29,144.28,3.4673]
[1728421069411,0.12502,144.29,144.25,15.56]
[1728421069812,3.59212,144.29,144.26,3.4678]
[1728421072615,3.59212,144.29,144.27,3.4675]
[1728421074015,0.12502,144.29,144.26,3.4678]
[1728421074216,0.12502,144.29,144.25,10.66]
[1728421074420,0.12502,144.29,144.26,10.66]
[1728421074631,0.12502,144.29,144.24,4.9]
[1728421074632,0.12502,144.29,144.28,10.66]
[1728421075415,0.12502,144.29,144.28,14.1273]
[1728421081414,0.12502,144.29,144.28,3.4673]
[1728421087721,0.12502,144.29,144.27,3.4675]
[1728421088631,0.12502,144.29,144.28,3.4673]
[1728421114752,335.0,144.42,144.28,10.66]
[1728421114946,8.3648,144.39,144.34,3.4659]
[1728421115147,3.4648,144.39,144.34,14.1259]
[1728421115550,1.3706,144.4,144.34,14.1259]
[1728421115850,4.8352,144.4,144.34,14.1259]
[1728421116152,3.4647,144.39,144.34,14.1259]
[1728421120452,1.3706,144.4,144.34,14.1259]
[1728421120648,4.8353,144.4,144.34,14.1259]
[1728421120951,1.3706,144.4,144.34,14.1259]
[1728421122559,3.4647,144.39,144.34,14.1259]
[1728421128854,0.12502,144.41,144.39,3.4647]
[1728421130158,0.12502,144.41,144.38,10.66]
[1728421130363,10.66,144.4,144.36,3.4653]
[1728421130551,14.1247,144.4,144.35,10.66]
[1728421130760,10.66,144.39,144.33,4.9]
[1728421131272,3.4649,144.39,144.35,10.66]
[1728421131562,12.0071,144.4,144.36,3.4653]
[1728421131764,3.465,144.38,144.36,3.4653]
[1728421133667,1.3471,144.4,144.38,3.4648]
[1728421133964,1.3471,144.4,144.37,10.66]
[1728421134358,1.3471,144.4,144.35,10.66]
[1728421134664,10.66,144.39,144.32,8.41768594]
[1728421134856,1.3471,144.4,144.35,10.66]
[1728421135063,1.3471,144.4,144.37,10.66]
[1728421135569,4.8118,144.4,144.38,3.4649]
[1728421136573,3.4645,144.4,144.38,3.4649]
[1728421136871,0.12502,144.41,144.39,3.4647]
[1728421137374,3.58942,144.41,144.39,3.4647]
[1728421138063,0.12502,144.41,144.39,14.1245]
[1728421139473,3.58932,144.41,144.39,14.1245]
[1728421139663,0.12502,144.41,144.39,10.66]
[1728421139969,3.4645,144.4,144.38,14.1249]
[1728421142869,3.4645,144.4,144.38,10.66]
[1728421143075,3.4645,144.4,144.37,14.1251]
[1728421146477,3.4645,144.4,144.38,3.4648]
[1728421146673,3.4645,144.4,144.38,14.1248]
[1728421146881,3.58932,144.41,144.38,14.1248]
[1728421147066,0.12502,144.41,144.4,10.66]
[1728421147381,0.12502,144.41,144.4,14.1245]
[1728421147973,0.12502,144.41,144.4,3.4645]
[1728421148366,0.12502,144.41,144.4,14.1245]
[1728421155779,0.12502,144.41,144.4,3.4645]
[1728421162479,0.12502,144.41,144.4,14.1245]
[1728421191912,1.51492,144.47,144.4,10.66]
[1728421192102,1.51492,144.47,144.46,10.66]
[1728421192305,0.12502,144.47,144.46,10.66]
[1728421192613,0.12502,144.47,144.46,14.123]
[1728421195006,0.12502,144.47,144.45,10.66]
[1728421195409,0.12502,144.47,144.44,3.4633]
[1728421195617,1.51072,144.47,144.44,3.4633]
[1728421195915,12.17072,144.47,144.44,3.4633]
[1728421196116,12.17072,144.47,144.35,3.62002]
[1728421196316,12.17072,144.47,144.42,10.66]
[1728421196709,1.51072,144.47,144.35,3.62002]
[1728421196907,12.17072,144.47,144.42,10.66]
[1728421197111,12.17072,144.47,144.43,10.66]
[1728421197504,0.12502,144.47,144.46,10.66]
[1728421197720,0.12502,144.47,144.45,10.66]
[1728421198108,0.12502,144.47,144.46,3.463]
[1728421198311,0.12502,144.47,144.45,10.66]
[1728421199416,0.12502,144.47,144.46,3.463]
[1728421202521,0.12502,144.47,144.46,14.123]
[1728421203325,0.12502,144.47,144.46,3.463]
[1728421203624,0.12502,144.47,144.46,14.123]
[1728421206324,0.12502,144.47,144.46,3.463]
[1728421206628,0.12502,144.47,144.46,14.123]
[1728421214016,0.12502,144.47,144.46,3.463]
[1728421214230,0.12502,144.47,144.44,4.9]
[1728421214420,0.12502,144.47,144.45,10.66]
[1728421214823,0.12502,144.47,144.46,3.463]
[1728421215133,10.78502,144.47,144.36,6.9308]
[1728421215337,14.1236,144.44,144.42,3.464]
[1728421215529,10.66,144.45,144.4,10.66]
[1728421215720,1.48902,144.47,144.41,10.66]
[1728421215924,10.66,144.46,144.41,10.66]
[1728421216631,3.4633,144.45,144.42,3.4639]
[1728421218434,3.4633,144.45,144.43,3.4637]
[1728421220535,3.4631,144.46,144.44,3.4633]
[1728421220737,3.4631,144.46,144.42,10.66]
[1728421221135,3.4631,144.46,144.44,3.4634]
[1728421223734,4.95192,144.47,144.45,14.1231]
[1728421224440,1.48902,144.47,144.45,14.1231]
[1728421225435,4.95182,144.47,144.45,14.1231]
[1728421227530,1.48902,144.47,144.46,3.463]
[1728421227735,0.12502,144.47,144.46,3.463]
[1728421230140,3.58782,144.47,144.45,14.1231]
[1728421231451,0.12502,144.47,144.45,10.66]
[1728421231645,0.12502,144.47,144.46,3.463]
[1728421236052,0.12502,144.47,144.46,14.123]
[1728421237652,0.12502,144.47,144.46,19.043]
[1728421243057,0.12502,144.47,144.46,8.383]
[1728421244154,0.12502,144.47,144.46,4.92]
[1728421245665,3.58782,144.47,144.46,4.92]
[1728421245863,0.12502,144.47,144.44,10.66]
[1728421246457,10.78502,144.47,144.41,4.92]
[1728421246663,10.78502,144.47,144.42,10.66]
[1728421247066,3.4631,144.46,144.43,3.4636]
[1728421247569,3.4634,144.45,144.42,14.1238]
[1728421248268,3.4634,144.45,144.43,3.4637]
[1728421251563,10.66,144.46,144.42,10.66]
[1728421251766,3.4631,144.46,144.44,3.4635]
[1728421255672,10.66,144.46,144.38,1.3678]
[1728421255975,3.4637,144.44,144.41,14.124]
[1728421256470,3.4637,144.44,144.42,3.4639]
[1728421257871,1.4231,144.45,144.44,3.4635]
[1728421259675,3.58792,144.47,144.44,3.4635]
[1728421260474,3.58792,144.47,144.43,10.66]
[1728421260781,3.58792,144.47,144.44,3.4633]
[1728421260962,0.12502,144.47,144.43,10.66]
[1728421261269,0.12502,144.47,144.45,3.4631]
[1728421262672,0.12502,144.47,144.44,10.66]
[1728421262879,0.12502,144.47,144.46,14.123]
[1728421265277,0.12502,144.47,144.46,3.463]
[1728421267779,0.12502,144.47,144.45,14.1231]
[1728421268477,0.12502,144.47,144.45,3.4631]
[1728421268677,3.58782,144.47,144.45,3.4631]
[1728421270478,0.12502,144.47,144.44,10.66]
[1728421270676,0.12502,144.47,144.46,3.463]
[1728421276179,0.12502,144.47,144.46,14.123]
[1728421281193,0.12502,144.47,144.46,3.463]
[1728421281680,0.12502,144.47,144.45,19.0231]
[1728421281987,0.12502,144.47,144.45,15.56]
[1728421282987,0.12502,144.47,144.46,3.463]
[1728421283589,3.4641,144.42,144.4,4.9]
[1728421283785,2.7417,144.46,144.4,4.9]
[1728421283985,10.66,144.43,144.38,10.66]
[1728421284184,14.11287838,144.43,144.38,4.9]
[1728421284379,10.66,144.43,144.38,4.9]
[1728421284983,3.4641,144.42,144.39,3.4647]
[1728421286493,10.66,144.43,144.39,3.4647]
[1728421286680,10.66,144.42,144.37,4.9]
[1728421286885,12.0075,144.42,144.37,4.9]
[1728421287391,3.4645,144.4,144.37,8.365]
[1728421287891,10.66,144.4,144.36,90.13044457]
[1728421288084,3.4648,144.39,144.36,82.93574457]
[1728421288586,3.4648,144.39,144.37,3.4651]
[1728421289493,3.4648,144.39,144.36,82.93584457]
[1728421294598,10.66,144.4,144.37,3.4651]
[1728421294790,14.1247,144.4,144.37,3.4651]
[1728421300702,3.4647,144.4,144.38,3.4649]
[1728421300902,8.4244,144.41,144.38,3.4649]
[1728421302004,3.4645,144.4,144.38,3.4649]
[1728421302904,3.4648,144.39,144.37,3.4651]
[1728421303106,10.66,144.4,144.35,0.12502]
[1728421303401,3.4652,144.38,144.35,3.59052]
[1728421304402,3.4652,144.37,144.35,3.59052]
[1728421307408,10.66,144.38,144.35,0.12502]
[1728421307612,10.66,144.39,144.36,3.4653]
[1728421308414,3.465,144.38,144.36,3.4653]
[1728421311009,10.66,144.39,144.35,0.12502]
[1728421311214,10.66,144.39,144.35,3.59052]
[1728421311215,3.465,144.38,144.35,3.59052]
[1728421312513,14.125,144.38,144.35,3.59052]
[1728421317316,14.125,144.38,144.35,0.12502]
[1728421317520,14.125,144.38,144.36,3.4654]
[1728421320415,3.465,144.38,144.36,3.4654]
[1728421323122,14.125,144.38,144.36,3.4654]
[1728421327429,3.465,144.38,144.36,3.4654]
[1728421327922,14.1248,144.39,144.37,3.4652]
[1728421329422,3.4648,144.39,144.37,3.4652]
[1728421329725,10.66,144.39,144.36,3.4653]
[1728421330426,3.465,144.38,144.36,3.4653]
[1728421340439,14.125,144.38,144.36,3.4653]
[1728421342124,10.66,144.38,144.35,0.12502]
[1728421342330,3.4652,144.37,144.35,3.59062]
[1728421347741,3.465,144.38,144.36,3.4653]
[1728421348041,10.66,144.4,144.35,10.78502]
[1728421349446,3.4647,144.39,144.37,3.465]
[1728421349836,14.1247,144.39,144.37,3.465]
[1728421354747,7.6017,144.41,144.35,0.12502]
[1728421354943,3.4646,144.4,144.38,3.4648]
[1728421355250,14.1246,144.4,144.38,3.4648]
[1728421355444,14.1246,144.4,144.39,3.4647]
[1728421355445,10.66,144.4,144.39,3.4647]
[1728421355956,10.66,144.4,144.35,15.68502]
[1728421356137,10.66,144.4,144.38,3.4648]
[1728421359548,10.66,144.41,144.39,3.4647]
[1728421360249,4.8116,144.42,144.4,3.4645]
[1728421360551,12.0075,144.42,144.36,10.66]
[1728421361449,15.4715,144.42,144.4,3.4643]
[1728421368257,3.4645,144.4,144.35,5.02502]
[1728421368466,10.66,144.38,144.35,5.02502]
[1728421369461,10.66,144.38,144.37,3.4651]
[1728421376461,10.66,144.39,144.35,5.02502]
[1728421376668,10.66,144.39,144.38,3.4649]
[1728421380763,10.66,144.39,144.35,5.02502]
[1728421380963,14.125,144.38,144.36,3.4653]
[1728421384970,3.4654,144.36,144.35,0.12502]
[1728421386063,10.66,144.37,144.35,0.12502]
[1728421386064,14.1253,144.37,144.35,0.12502]
[1728421390570,3.4654,144.36,144.35,0.12502]
[1728421397679,8.365,144.38,144.36,3.4653]
[1728421397983,2.6477,144.4,144.35,0.12502]
[1728421398185,18.2077,144.4,144.35,0.12502]
[1728421398373,3.4647,144.39,144.37,3.465]
[1728421399194,14.1247,144.39,144.37,3.465]
[1728421400792,10.66,144.38,144.37,3.465]
[1728421400996,10.66,144.38,144.35,0.12502]
[1728421401193,10.66,144.38,144.36,3.4653]
[1728421401401,14.1249,144.38,144.36,3.4653]
[1728421402105,3.4652,144.37,144.35,3.59062]
[1728421402399,10.66,144.36,144.35,3.59062]
[1728421406790,7.5477,144.4,144.35,0.12502]
[1728421406791,3.465,144.38,144.35,0.12502]
[1728421407604,3.465,144.38,144.36,3.4652]
[1728421410908,10.66,144.37,144.36,3.4652]
[1728421413706,3.4648,144.39,144.37,3.4651]
[1728421413908,14.1248,144.39,144.37,3.4651]
[1728421414406,3.4648,144.39,144.37,3.4651]
[1728421414613,1.3475,144.42,144.36,10.66]
[1728421414801,6.2475,144.42,144.36,10.66]
[1728421414998,16.9075,144.42,144.36,10.66]
[1728421415201,3.4644,144.41,144.38,3.4648]
[1728421415398,14.1244,144.41,144.38,3.4648]
[1728421420717,3.4645,144.4,144.38,3.4648]
[1728421421114,10.66,144.39,144.38,3.4648]
[1728421429722,14.1249,144.39,144.36,3.4654]
[1728421430014,10.66,144.38,144.36,3.4654]
[1728421430209,10.66,144.37,144.35,0.12502]
[1728421430410,10.66,144.36,144.35,3.59052]
[1728421431006,14.1252,144.37,144.35,3.59052]
[1728421435826,3.4652,144.37,144.35,3.59052]
[1728421440329,14.1254,144.36,144.35,0.12502]
[1728421440518,19.0254,144.36,144.35,0.12502]
[1728421440721,22.45038839,144.36,144.35,0.12502]
[1728421443124,18.98498839,144.36,144.35,3.59072]
[1728421445335,22.45038839,144.36,144.35,0.12502]
[1728421448338,17.55038839,144.36,144.35,0.12502]
[1728421448541,22.45038839,144.36,144.35,0.12502]
[1728421458935,8.32498839,144.36,144.35,0.12502]
[1728421460039,8.32498839,144.36,144.35,3.59072]
[1728421463037,1.4348,144.36,144.35,0.12502]
[1728421463239,10.66,144.4,144.35,0.12502]
[1728421463434,15.56,144.39,144.35,0.12502]
[1728421463639,19.0247,144.39,144.37,3.465]
[1728421464742,14.1247,144.39,144.37,3.465]
[1728421464937,10.66,144.39,144.37,3.465]
[1728421465138,4.9,144.39,144.38,3.4648]
[1728421465346,4.9,144.39,144.35,10.78502]
[1728421466241,10.66,144.39,144.36,3.4652]
[1728421466452,10.66,144.39,144.35,0.12502]
[1728421466453,10.66,144.37,144.35,0.12502]
[1728421466946,3.4654,144.36,144.35,0.12502]
[1728421467451,8.3654,144.36,144.35,0.12502]
[1728421493372,8.34692903,144.36,144.32,3.4662]
[1728421493672,3.466,144.34,144.32,3.4662]
[1728421493868,4.9,144.33,144.32,3.4662]
[1728421496176,4.9,144.33,144.28,2.8043]
[1728421496769,8.3662,144.33,144.31,3.4665]
[1728421500783,4.9,144.32,144.31,3.4665]
[1728421502480,4.9,144.32,144.26,160.3782865]
[1728421502788,4.9,144.32,144.26,159.0652865]
[1728421503082,3.4669,144.3,144.26,3.4676]
[1728421503684,3.4669,144.3,144.27,3.4675]
[1728421503884,3.4669,144.3,144.24,159.11444871]
[1728421505379,3.4669,144.3,144.28,3.4673]
[1728421505788,3.4669,144.3,144.24,159.11444871]
[1728421505994,3.4669,144.3,144.27,3.4675]
[1728421508093,3.4669,144.3,144.23,0.12502]
[1728421508392,4.9,144.3,144.23,0.12502]
[1728421508694,4.9,144.3,144.29,3.59202]
[1728421508884,4.9,144.3,144.29,0.12502]
[1728421513596,8.3669,144.3,144.29,0.12502]
[1728421516795,3.4676,144.27,144.25,3.468]
[1728421516998,4.9,144.27,144.25,3.468]
[1728421519691,4.9,144.27,144.23,159.23946871]
[1728421519997,4.9,144.27,144.26,3.4678]
[1728421520794,4.9,144.27,144.23,0.12502]
[1728421521008,4.9,144.27,144.23,3.59342]
[1728421521297,4.9,144.27,144.23,0.12502]
[1728421521502,3.4682,144.25,144.23,0.12502]
[1728421521703,4.9,144.24,144.23,0.12502]
[1728421524201,4.9,144.24,144.23,3.59352]
[1728421524706,4.9,144.24,144.23,0.12502]
[1728421524897,8.3683,144.24,144.23,0.12502]
[1728421525599,4.9,144.24,144.19,3.4694]
[1728421526810,3.4689,144.22,144.19,3.4694]
[1728421527109,4.9,144.21,144.19,3.4694]
[1728421527299,4.9,144.21,144.17,0.12502]
[1728421527606,3.4695,144.19,144.17,0.12502]
[1728421527795,4.9,144.18,144.17,0.12502]
[1728421528595,8.3697,144.18,144.17,0.12502]
[1728421533518,4.9,144.18,144.17,0.12502]
[1728421534601,4.1549,144.26,144.17,0.12502]
[1728421534821,4.9,144.25,144.17,0.12502]
[1728421535400,3.4692,144.21,144.18,3.4696]
[1728421535602,3.4692,144.21,144.17,0.12502]
[1728421535802,4.9,144.2,144.17,0.12502]
[1728421536510,4.9,144.2,144.18,3.4697]
[1728421537706,4.1549,144.26,144.17,0.12502]
[1728421538011,3.469,144.22,144.19,3.4694]
[1728421538211,4.9,144.21,144.17,0.12502]
[1728421538513,8.3692,144.21,144.18,3.4696]
[1728421539309,3.4693,144.2,144.18,3.4696]
[1728421545213,4.9,144.19,144.18,3.4696]
[1728421546922,8.44338689,144.19,144.18,3.4696]
[1728421547616,8.44338689,144.19,144.17,0.12502]
[1728421547617,3.4697,144.18,144.17,0.12502]
[1728421547821,9.84638689,144.19,144.13,315.04660845]
[1728421548325,3.4703,144.16,144.14,3.4706]
[1728421548618,4.9,144.15,144.14,3.4706]
[1728421548820,3.471,144.13,144.11,3.59642]
[1728421549005,3.471,144.13,144.11,0.12502]
[1728421549207,4.9,144.12,144.11,0.12502]
[1728421549616,8.3712,144.12,144.11,0.12502]
[1728421560519,3.4706,144.15,144.12,3.471]
[1728421560726,4.9,144.14,144.11,0.12502]
[1728421561031,4.9,144.13,144.11,0.12502]
[1728421561929,4.9,144.12,144.11,0.12502]
[1728421562426,4.9,144.12,144.11,3.59642]
[1728421570235,4.9,144.14,144.11,0.12502]
[1728421571339,3.4702,144.17,144.15,3.4704]
[1728421571531,4.9,144.16,144.11,0.12502]
[1728421572233,4.9,144.16,144.15,3.4705]
[1728421573540,4.94638689,144.19,144.15,3.4705]
[1728421573735,4.94638689,144.19,144.11,0.12502]
[1728421573927,3.54338689,144.19,144.11,0.12502]
[1728421574127,4.9,144.18,144.11,1.41742]
[1728421574542,4.9,144.18,144.11,6.31742]
[1728421574941,6.1132,144.22,144.12,6.9423]
[1728421575243,4.9,144.21,144.12,6.9423]
[1728421575443,3.4694,144.2,144.18,3.4697]
[1728421575642,3.4694,144.2,144.12,6.9423]
[1728421575842,4.9,144.21,144.12,6.9423]
[1728421576051,3.4695,144.19,144.17,3.4699]
[1728421576847,8.3695,144.19,144.17,3.4699]
[1728421578939,4.9,144.19,144.12,6.9423]
[1728421579748,4.9,144.19,144.17,3.4699]
[1728421579948,4.9,144.19,144.12,6.9423]
[1728421580754,4.9,144.19,144.18,3.4697]
[1728421581248,4.9,144.19,144.12,6.9423]
[1728421581449,4.9,144.19,144.17,3.4699]
[1728421581650,4.9,144.19,144.12,6.9423]
[1728421581850,4.9,144.19,144.18,3.4697]
[1728421582252,4.9,144.19,144.12,6.9423]
[1728421582447,75.04502,144.23,144.11,6.31742]
[1728421582448,4.9,144.21,144.11,6.31742]
[1728421582652,4.9,144.21,144.14,6.9414]
[1728421582852,4.9,144.21,144.15,2.7129]
[1728421583450,4.9,144.21,144.2,3.4693]
[1728421587548,4.9,144.21,144.19,3.4694]
[1728421594968,4.9,144.21,144.15,2.7129]
[1728421595262,4.9,144.21,144.2,3.4693]
[1728421601658,4.9,144.21,144.19,3.4694]
[1728421602170,3.4696,144.19,144.17,3.4698]
[1728421602361,6.89121286,144.19,144.17,3.4698]
[1728421602668,3.42161286,144.19,144.17,3.4698]
[1728421602868,3.4694,144.2,144.17,3.4698]
[1728421603060,3.425082,144.19,144.17,3.4698]
[1728421603262,3.425082,144.19,144.15,2.7129]
[1728421603468,3.4694,144.2,144.18,3.4697]
[1728421608574,3.49793394,144.19,144.18,3.4697]
[1728421611077,3.4699,144.18,144.16,3.4702]
[1728421611577,4.9,144.21,144.16,3.4702]
[1728421611775,3.4696,144.19,144.16,3.4702]
[1728421611962,4.88,144.18,144.16,3.4702]
[1728421612370,4.88,144.18,144.17,3.47]
[1728421612976,8.3497,144.18,144.16,3.4701]
[1728421613384,4.88,144.18,144.14,79.60798942]
[1728421613883,3.47,144.17,144.14,83.07858942]
[1728421614870,4.88,144.18,144.14,79.60798942]
[1728421615075,3.4707,144.14,144.12,3.4711]
[1728421615272,4.88,144.14,144.11,0.12502]
[1728421616182,3.4711,144.13,144.11,0.12502]
[1728421617387,3.4711,144.13,144.11,3.59642]
[1728421617983,8.3508,144.14,144.11,3.59642]
[1728421619390,1.4091,144.13,144.11,0.12502]
[1728421619981,1.4091,144.13,144.12,3.4712]
[1728421629797,1.3295,144.17,144.11,0.12502]
[1728421630004,4.88,144.16,144.11,0.12502]
[1728421630892,3.4706,144.15,144.12,3.471]
[1728421635296,4.88,144.16,144.12,3.471]
[1728421636390,3.4706,144.15,144.12,3.471]
[1728421637392,3.4708,144.14,144.12,3.471]
[1728421637594,1.3295,144.17,144.13,3.4709]
[1728421637793,4.88,144.16,144.13,3.4709]
[1728421637996,8.3504,144.16,144.13,3.4709]
[1728421639903,3.4706,144.15,144.12,3.4711]